fUSD/lending_fUSD_20250417
["ID","MTS","AMOUNT","RATE_DAILY","PERIOD"]
[358243309,1744872277139,222.92178684,0.000265,120]
[358243311,1744872425154,-157.85,0.00024932,2]
[358243312,1744872425177,-283.94,0.00032877,30]
[358243313,1744872425199,-0.34287085,0.00045,5]
[358243314,1744872450075,-1364.14255406,0.00045,5]
[358243316,1744872561098,-635.51457509,0.00045,5]
[358243317,1744872561120,-15.45610788,0.00046543,2]
[358243319,1744872631588,-151.0,0.00035364,2]
[358243320,1744872631598,-151.0,0.00035407,2]
[358243321,1744872631608,-151.0,0.00035407,2]
[358243322,1744872631618,-503.05389212,0.00046543,2]
[358243323,1744872631627,-157.85,0.00047342,2]
[358243324,1744872631637,-1000.0,0.00048037,2]
[358243325,1744872631647,-289.83,0.00048108,2]
[358243326,1744872631657,-376.42,0.00048108,2]
[358243327,1744872631667,-241.59,0.00048402,120]
[358243328,1744872631676,-503.16535901,0.000486,120]
[358243329,1744872631686,-798.14,0.00048624,2]
[358243330,1744872631695,-346.5268428,0.0004866,4]
[358243331,1744872631705,-300.0,0.00048799,5]
[358243332,1744872631715,-2000.0,0.000488,2]
[358243333,1744872631724,-643.78,0.000488,84]
[358243334,1744872631733,-518.51,0.00048807,2]
[358243335,1744872631743,-200.0,0.00049,2]
[358243336,1744872631753,-4540.0,0.00049,2]
[358243337,1744872631762,-171.88713461,0.00049205,28]
[358243338,1744872631771,-6000.4408174,0.00049205,15]
[358243339,1744872631780,-433.86047205,0.00049213,21]
[358243340,1744872631804,-761.16502286,0.00049213,21]
[358243341,1744872631816,-168.49875242,0.00049213,21]
[358243342,1744872631825,-2210.41379545,0.00049215,15]
[358243343,1744872631834,-200.0,0.000493,5]
[358243344,1744872631844,-200.0,0.000493,7]
[358243345,1744872631854,-200.0,0.000493,7]
[358243346,1744872631865,-200.0,0.000493,7]
[358243347,1744872631878,-200.0,0.000493,7]
[358243348,1744872631888,-200.0,0.000493,7]
[358243349,1744872631897,-84.12496263,0.000493,7]
[358243350,1744872631911,-115.87503737,0.000493,7]
[358243351,1744872631921,-200.0,0.000493,7]
[358243352,1744872631931,-200.0,0.000493,7]
[358243353,1744872631940,-198.86575981,0.00049304,120]
[358243354,1744872631951,-13.76548266,0.00049304,4]
[358243355,1744872631963,-536.23451734,0.00049304,4]
[358243356,1744872631972,-697.98138048,0.00049304,9]
[358243357,1744872631982,-39552.15534978,0.00049305,4]
[358243358,1744872631997,-848.28988526,0.00049305,4]
[358243359,1744872632009,-34084.76,0.00049305,4]
[358243360,1744872632020,-1956.94,0.00049305,4]
[358243362,1744872632040,-83672.43591596,0.00049305,4]
[358243364,1744872632049,-4769.68868774,0.00049305,4]
[358243366,1744872632060,-4994.9240036,0.00049305,4]
[358243368,1744872632071,-15388.98577012,0.00049305,4]
[358243370,1744872632083,-628.42,0.00049305,4]
[358243377,1744872632142,-7933.5579185,0.00049305,4]
[358243380,1744872632155,-2704.95483257,0.00049305,4]
[358243382,1744872632166,-2208.97184433,0.00049305,4]
[358243384,1744872632177,-500.0,0.00049305,4]
[358243385,1744872632207,-413.21193929,0.00049305,4]
[358243386,1744872632218,-1139.681725,0.00049305,4]
[358243387,1744872632233,-7219.04607583,0.00049305,4]
[358243388,1744872632247,-1399.07900085,0.00049305,4]
[358243389,1744872632260,-580.09410336,0.00049305,4]
[358243390,1744872632342,-1401.37369004,0.00049305,4]
[358243391,1744872632353,-950.26546194,0.00049305,4]
[358243392,1744872632365,-1266.60175907,0.00049305,4]
[358243393,1744872632384,-648.42345997,0.00049305,4]
[358243399,1744872637699,-151.0,0.00034986,2]
[358243400,1744872637709,-522.65701823,0.00044199,30]
[358243401,1744872637720,-900.48983006,0.00044199,30]
[358243402,1744872637732,-779.79811136,0.00044199,30]
[358243403,1744872637741,-888.49941619,0.000455,2]
[358243404,1744872637751,-720.30247765,0.00048008,2]
[358243405,1744872637763,-328.1771447,0.00048008,2]
[358243406,1744872637782,-486.09,0.00048008,2]
[358243407,1744872637897,-124.4466101,0.00048008,2]
[358243408,1744872637907,-14964.35359562,0.00049305,4]
[358243409,1744872637919,-925.1,0.00049305,4]
[358243410,1744872637930,-614.6374616,0.00049305,4]
[358243411,1744872637942,-26391.10119232,0.00049305,4]
[358243412,1744872637953,-1606.88965299,0.00049305,4]
[358243413,1744872637966,-66234.907664,0.00049305,4]
[358243414,1744872637977,-29060.96922243,0.00049305,4]
[358243415,1744872637997,-54408.58281307,0.00049305,4]
[358243416,1744872638006,-24478.010763,0.00049305,2]
[358243417,1744872638016,-212.68623052,0.00049305,7]
[358243418,1744872638026,-109097.25371998,0.00049312,120]
[358243419,1744872638035,-285877.38477803,0.00049314,2]
[358243420,1744872638059,-151.0,0.00048319,15]
[358243421,1744872638069,-456.500001,0.00049314,2]
[358243422,1744872638080,-736.57390145,0.00049314,2]
[358243423,1744872638092,-1026.92935832,0.00049314,2]
[358243424,1744872638106,-368.47889,0.00049314,2]
[358243426,1744872638118,-680.891175,0.00049314,2]
[358243427,1744872638131,-528.69395831,0.00049314,2]
[358243428,1744872638141,-1085.09011866,0.00049314,2]
[358243429,1744872638162,-523.85245532,0.00049314,2]
[358243432,1744872638435,-884.93,0.00049314,2]
[358243440,1744872641604,-0.01427027,0.000493,30]
[358243441,1744872641995,-846.59298576,0.000493,30]
[358243442,1744872642011,-648.01107535,0.000493,30]
[358243443,1744872642026,-505.38166862,0.000493,30]
[358243444,1744872642039,-181087.30062771,0.00049314,2]
[358243445,1744872642050,-500.0,0.00049314,120]
[358243446,1744872642062,-163.59834917,0.00049314,120]
[358243447,1744872642073,-237.44842396,0.00049314,120]
[358243448,1744872642084,-532.87302796,0.00049315,2]
[358243449,1744872642097,-618.66,0.00049315,120]
[358243450,1744872642111,-500.0,0.00049315,120]
[358243451,1744872642123,-500.0,0.00049315,120]
[358243452,1744872642136,-500.0,0.00049315,120]
[358243453,1744872642148,-1532.91,0.00049315,120]
[358243454,1744872642160,-977.01,0.00049315,120]
[358243455,1744872642173,-2457.23,0.00049315,120]
[358243456,1744872642186,-581.07,0.00049315,120]
[358243457,1744872642199,-521.76939274,0.00049315,120]
[358243458,1744872642212,-1000.0,0.00049315,120]
[358243459,1744872642225,-500.0,0.00049315,120]
[358243460,1744872642244,-500.0,0.00049315,120]
[358243461,1744872642257,-480.21035082,0.00049315,120]
[358243462,1744872642269,-317.55921384,0.00049315,120]
[358243463,1744872642282,-500.0,0.00049315,120]
[358243464,1744872642294,-500.0,0.00049315,120]
[358243465,1744872642307,-500.0,0.00049315,120]
[358243466,1744872642319,-500.0,0.00049315,120]
[358243467,1744872642331,-500.0,0.00049315,120]
[358243468,1744872642344,-500.0,0.00049315,120]
[358243469,1744872642356,-507.93,0.00049315,120]
[358243470,1744872642369,-747.3,0.00049315,120]
[358243471,1744872642381,-120002.16,0.00049315,7]
[358243472,1744872642392,-500.0,0.00049315,120]
[358243473,1744872642403,-571.3,0.00049315,120]
[358243474,1744872642414,-10000.18,0.00049315,7]
[358243476,1744872642425,-238.67354013,0.00049315,120]
[358243481,1744872642439,-1594.41,0.00049315,120]
[358243483,1744872642453,-500.0,0.00049315,120]
[358243485,1744872642464,-500.0,0.00049315,120]
[358243486,1744872642474,-500.0,0.00049315,120]
[358243487,1744872642485,-500.0,0.00049315,120]
[358243488,1744872642495,-500.0,0.00049315,120]
[358243489,1744872642507,-500.0,0.00049315,120]
[358243490,1744872642521,-500.0,0.00049315,120]
[358243492,1744872642537,-795.62,0.00049315,120]
[358243493,1744872642547,-9539.04,0.00049315,2]
[358243494,1744872642558,-500.0,0.00049315,120]
[358243495,1744872642570,-500.0,0.00049315,120]
[358243497,1744872642581,-500.0,0.00049315,120]
[358243499,1744872642592,-500.0,0.00049315,120]
[358243500,1744872642603,-500.0,0.00049315,120]
[358243501,1744872642615,-500.66853145,0.00049315,120]
[358243502,1744872642626,-601.98,0.00049315,120]
[358243503,1744872642637,-500.0,0.00049315,120]
[358243504,1744872642648,-896.11,0.00049315,120]
[358243505,1744872642659,-500.0,0.00049315,120]
[358243506,1744872642671,-542.0,0.00049315,120]
[358243507,1744872642682,-780.24,0.00049315,120]
[358243508,1744872642694,-500.0,0.00049315,120]
[358243509,1744872642706,-500.0,0.00049315,120]
[358243510,1744872642717,-500.0,0.00049315,120]
[358243511,1744872642730,-500.0,0.00049315,120]
[358243512,1744872642741,-500.0,0.00049315,120]
[358243513,1744872642753,-500.0,0.00049315,120]
[358243514,1744872642764,-500.0,0.00049315,120]
[358243515,1744872642776,-2463.69,0.00049315,120]
[358243516,1744872642787,-500.0,0.00049315,120]
[358243517,1744872642798,-1904.35,0.00049315,120]
[358243518,1744872642809,-1088.25,0.00049315,120]
[358243519,1744872642820,-2050.25,0.00049315,120]
[358243520,1744872642832,-500.0,0.00049315,120]
[358243521,1744872642843,-500.0,0.00049315,120]
[358243522,1744872642853,-1136.84,0.00049315,120]
[358243523,1744872642865,-500.0,0.00049315,120]
[358243524,1744872642877,-500.0,0.00049315,120]
[358243525,1744872642891,-576.25080737,0.00049315,120]
[358243526,1744872642903,-783.55,0.00049315,120]
[358243527,1744872642915,-1972.06,0.00049315,120]
[358243528,1744872642926,-500.0,0.00049315,120]
[358243529,1744872642937,-500.0,0.00049315,120]
[358243530,1744872642949,-500.0,0.00049315,120]
[358243531,1744872642961,-729.39,0.00049315,120]
[358243532,1744872642972,-713.87,0.00049315,120]
[358243533,1744872642983,-500.0,0.00049315,120]
[358243534,1744872642994,-2104.01,0.00049315,120]
[358243535,1744872643005,-500.0,0.00049315,120]
[358243536,1744872643017,-1182.52,0.00049315,120]
[358243537,1744872643028,-504.43690969,0.00049315,120]
[358243538,1744872643040,-1666.26,0.00049315,120]
[358243539,1744872643052,-500.0,0.00049315,2]
[358243540,1744872643063,-500.0,0.00049315,120]
[358243541,1744872643075,-500.0,0.00049315,120]
[358243542,1744872643085,-1111.63,0.00049315,120]
[358243543,1744872643096,-525.96,0.00049315,120]
[358243544,1744872643110,-607.15,0.00049315,120]
[358243545,1744872643121,-500.0,0.00049315,120]
[358243546,1744872643132,-541.32,0.00049315,120]
[358243547,1744872643143,-471.61375348,0.00049315,120]
[358243548,1744872643162,-537.74365054,0.00049315,120]
[358243549,1744872643177,-289.04259598,0.00049315,120]
[358243550,1744872643189,-524.02,0.00049315,120]
[358243551,1744872643200,-381.67825145,0.00049315,120]
[358243552,1744872643236,-685.03297741,0.00049315,120]
[358243553,1744872643249,-45.19877114,0.00049315,120]
[358243554,1744872643259,-1555.7,0.00049315,120]
[358243555,1744872643270,-1283.55,0.00049315,120]
[358243556,1744872643281,-500.0,0.00049315,120]
[358243557,1744872643292,-289.44942899,0.00049315,120]
[358243558,1744872643303,-500.0,0.00049315,120]
[358243559,1744872643314,-500.0,0.00049315,30]
[358243560,1744872643325,-500.0,0.00049315,120]
[358243561,1744872643337,-194.85654402,0.00049315,120]
[358243562,1744872643347,-500.0,0.00049315,120]
[358243563,1744872643358,-266.0525657,0.00049315,120]
[358243564,1744872643372,-244.9874343,0.00049315,120]
[358243565,1744872643383,-1457.54,0.00049315,120]
[358243566,1744872643393,-502.32162742,0.00049315,120]
[358243567,1744872643404,-500.0,0.00049315,120]
[358243568,1744872643416,-500.0,0.00049315,120]
[358243569,1744872643427,-500.0,0.00049315,120]
[358243570,1744872643438,-1013.21,0.00049315,120]
[358243571,1744872643449,-103.62081738,0.00049315,120]
[358243572,1744872643463,-308.94361421,0.00049315,120]
[358243573,1744872643490,-740.12556841,0.00049315,120]
[358243574,1744872643501,-1170.36,0.00049315,120]
[358243575,1744872643512,-554.7068188,0.00049315,120]
[358243576,1744872643524,-419.65738344,0.00049315,120]
[358243577,1744872643537,-80.34261656,0.00049315,120]
[358243578,1744872643548,-500.0,0.00049315,120]
[358243579,1744872643560,-500.0,0.00049315,120]
[358243580,1744872643571,-500.0,0.00049315,120]
[358243581,1744872643582,-500.0,0.00049315,120]
[358243582,1744872643593,-370.77015414,0.00049315,120]
[358243583,1744872643606,-129.22984586,0.00049315,120]
[358243584,1744872643617,-901.29876485,0.00049315,120]
[358243607,1744872645745,-512.87917781,0.00049315,120]
[358243608,1744872645765,-337.74205734,0.00049315,120]
[358243609,1744872645774,-512.26,0.00049315,120]
[358243610,1744872645784,-500.0,0.00049315,120]
[358243611,1744872645794,-859.35,0.00049315,120]
[358243612,1744872645803,-500.0,0.00049315,120]
[358243613,1744872645815,-500.0,0.00049315,120]
[358243614,1744872645824,-500.0,0.00049315,120]
[358243615,1744872645834,-394.64844156,0.00049315,120]
[358243616,1744872645845,-2253.76155844,0.00049315,120]
[358243617,1744872645854,-964.98,0.00049315,120]
[358243618,1744872645864,-1389.87,0.00049315,120]
[358243619,1744872645873,-664.69,0.00049315,120]
[358243620,1744872645885,-500.0,0.00049315,120]
[358243621,1744872645895,-500.0,0.00049315,120]
[358243622,1744872645904,-933.05,0.00049315,120]
[358243623,1744872645913,-311.49412926,0.00049315,120]
[358243624,1744872645926,-188.50587074,0.00049315,120]
[358243625,1744872645935,-500.0,0.00049315,120]
[358243626,1744872645945,-1000.0,0.00049315,120]
[358243627,1744872645956,-500.0,0.00049315,120]
[358243628,1744872645966,-500.0,0.00049315,120]
[358243629,1744872645976,-730.98,0.00049315,120]
[358243630,1744872645986,-500.0,0.00049315,120]
[358243631,1744872645995,-500.0,0.00049315,120]
[358243632,1744872646005,-756.59,0.00049315,120]
[358243633,1744872646014,-825.36,0.00049315,120]
[358243634,1744872646024,-2117.53,0.00049315,120]
[358243635,1744872646033,-500.0,0.00049315,120]
[358243636,1744872646043,-981.09,0.00049315,120]
[358243637,1744872646053,-500.0,0.00049315,120]
[358243638,1744872646062,-500.0,0.00049315,120]
[358243639,1744872646071,-532.99,0.00049315,120]
[358243640,1744872646081,-1817.78,0.00049315,120]
[358243641,1744872646091,-1675.74,0.00049315,120]
[358243642,1744872646100,-500.0,0.00049315,120]
[358243643,1744872646111,-641.44325056,0.00049315,120]
[358243644,1744872646120,-500.0,0.00049315,120]
[358243645,1744872646130,-1622.7,0.00049315,120]
[358243646,1744872646139,-1825.97,0.00049315,120]
[358243647,1744872646150,-500.0,0.00049315,120]
[358243648,1744872646159,-500.0,0.00049315,120]
[358243649,1744872646170,-1104.03,0.00049315,120]
[358243650,1744872646179,-307.92370059,0.00049315,120]
[358243652,1744872646514,-192.07629941,0.00049315,120]
[358243653,1744872646525,-500.0,0.00049315,30]
[358243654,1744872646535,-500.0,0.00049315,120]
[358243655,1744872646544,-900.16,0.00049315,120]
[358243656,1744872646554,-500.0,0.00049315,120]
[358243657,1744872646564,-500.0,0.00049315,120]
[358243658,1744872646573,-1069.13,0.00049315,120]
[358243659,1744872646582,-126.80573527,0.00049315,120]
[358243660,1744872646594,-1011.39426473,0.00049315,120]
[358243661,1744872646604,-500.0,0.00049315,120]
[358243662,1744872646614,-1405.13,0.00049315,30]
[358243663,1744872646623,-1280.93,0.00049315,120]
[358243664,1744872646632,-1330.82,0.00049315,120]
[358243665,1744872646642,-1791.02,0.00049315,120]
[358243666,1744872646651,-500.0,0.00049315,120]
[358243667,1744872646659,-500.0,0.00049315,120]
[358243668,1744872646669,-574.98,0.00049315,120]
[358243669,1744872646679,-500.0,0.00049315,120]
[358243670,1744872646688,-500.0,0.00049315,120]
[358243671,1744872646698,-158.811424,0.00049315,120]
[358243672,1744872646707,-500.0,0.00049315,120]
[358243673,1744872646718,-1079.45,0.00049315,120]
[358243674,1744872646727,-2603.96,0.00049315,120]
[358243675,1744872646739,-500.0,0.00049315,120]
[358243676,1744872646748,-500.0,0.00049315,120]
[358243677,1744872646757,-500.0,0.00049315,120]
[358243678,1744872646768,-500.0,0.00049315,120]
[358243679,1744872646776,-158.097723,0.00049315,120]
[358243680,1744872646785,-699.44,0.00049315,120]
[358243681,1744872646792,-683.95,0.00049315,120]
[358243682,1744872646802,-1575.9,0.00049315,120]
[358243683,1744872646814,-500.0,0.00049315,120]
[358243684,1744872646824,-500.0,0.00049315,120]
[358243685,1744872646835,-1968.46,0.00049315,120]
[358243686,1744872646844,-776.3,0.00049315,120]
[358243687,1744872646854,-533.55658827,0.00049315,120]
[358243688,1744872646866,-414.98000009,0.00049315,120]
[358243689,1744872709381,250.0,0.00017,2]
[358243690,1744872710453,300.0,0.00019,2]
[358243702,1744873566920,-183.37,0.00024932,2]
[358243703,1744873566943,-250.0,0.00027425,2]
[358243704,1744873566966,-183.37,0.00030829,2]
[358243705,1744873566989,-1505.41570861,0.00032,2]
[358243706,1744873567011,-183.37,0.00036727,2]
[358243707,1744873567033,-183.37,0.00042624,2]
[358243708,1744873567057,-508.07,0.00046051,2]
[358243709,1744873567079,-3603.03429139,0.000475,120]
[358243710,1744873631127,-151.0,0.00034654,2]
[358243711,1744873631150,-151.0,0.00034654,2]
[358243712,1744873631172,-151.0,0.00039105,2]
[358243713,1744873631195,-73.68218625,0.00041097,5]
[358243714,1744873648087,-77.31781375,0.00041097,5]
[358243715,1744873648117,-151.0,0.00041981,5]
[358243716,1744873648147,-151.0,0.00042651,5]
[358243717,1744873648177,-151.0,0.00042651,5]
[358243718,1744873648206,-151.0,0.00042791,5]
[358243719,1744873648235,-150.0,0.000472,2]
[358243720,1744873648264,-178.70857312,0.000472,2]
[358243721,1744873648294,-500.0,0.000472,2]
[358243722,1744873648326,-134.38685545,0.000472,2]
[358243726,1744873831789,-151.0,0.00042717,5]
[358243727,1744873831799,-151.0,0.00042718,5]
[358243728,1744873831809,-202.45,0.00042729,5]
[358243729,1744873831818,-151.0,0.00042739,5]
[358243730,1744873831827,-3365.63470715,0.00047,60]
[358243731,1744873831836,-550.0,0.00047199,4]
[358243732,1744873831845,-300.0,0.00047199,5]
[358243733,1744873831854,-365.61314455,0.000472,2]
[358243734,1744873831864,-500.0,0.000472,2]
[358243735,1744873831873,-533.90985985,0.000472,2]
[358243736,1744873831883,-500.0,0.000472,2]
[358243737,1744873831892,-500.0,0.000472,2]
[358243738,1744873831902,-500.0,0.000472,2]
[358243739,1744873831910,-500.0,0.000472,2]
[358243740,1744873831919,-500.0,0.000472,2]
[358243741,1744873831929,-500.0,0.000472,2]
[358243742,1744873831938,-500.0,0.000472,2]
[358243743,1744873831947,-244.21108207,0.000472,2]
[358243744,1744873831956,-500.0,0.000472,2]
[358243745,1744873831965,-325.35426168,0.000472,2]
[358243746,1744873832004,-174.64573832,0.000472,2]
[358243747,1744873832014,-500.0,0.000472,2]
[358243748,1744873832023,-500.0,0.000472,2]
[358243749,1744873832032,-375.95426169,0.000472,2]
[358243750,1744873832048,-124.04573831,0.000472,2]
[358243751,1744873832057,-500.0,0.000472,2]
[358243753,1744873832066,-132.51784288,0.000472,2]
[358243755,1744873832078,-367.48215712,0.000472,2]
[358243757,1744873832087,-500.0,0.000472,2]
[358243759,1744873832096,-500.0,0.000472,2]
[358243761,1744873832105,-500.0,0.000472,2]
[358243763,1744873832114,-500.0,0.000472,2]
[358243765,1744873832123,-542.70670298,0.000472,2]
[358243767,1744873832132,-500.0,0.000472,2]
[358243768,1744873832141,-500.0,0.000472,2]
[358243769,1744873832151,-500.0,0.000472,2]
[358243771,1744873832160,-500.0,0.000472,2]
[358243772,1744873832169,-500.0,0.000472,2]
[358243773,1744873832178,-500.0,0.000472,2]
[358243775,1744873832188,-500.0,0.000472,2]
[358243777,1744873832197,-500.0,0.000472,2]
[358243779,1744873832207,-500.0,0.000472,2]
[358243781,1744873832216,-150.0,0.000472,2]
[358243783,1744873832225,-150.0,0.000472,2]
[358243785,1744873832234,-216.8352986,0.000472,2]
[358243787,1744873832244,-196.24123542,0.000472,2]
[358243789,1744873832253,-150.0,0.000472,2]
[358243791,1744873832262,-150.0,0.000472,2]
[358243792,1744873832271,-150.0,0.000472,2]
[358243793,1744873832280,-231.23175682,0.000472,2]
[358243794,1744873832289,-500.0,0.000472,2]
[358243795,1744873832298,-500.0,0.000472,2]
[358243796,1744873832308,-500.0,0.000472,2]
[358243797,1744873832318,-322.29687218,0.000472,2]
[358243798,1744873832331,-277.36400222,0.000472,2]
[358243799,1744873832348,-222.63599778,0.000472,2]
[358243800,1744873832357,-500.0,0.000472,2]
[358243801,1744873832368,-500.0,0.000472,2]
[358243802,1744873832377,-500.0,0.000472,2]
[358243803,1744873832386,-500.0,0.000472,2]
[358243804,1744873832395,-500.0,0.000472,2]
[358243805,1744873832405,-500.0,0.000472,2]
[358243806,1744873832414,-500.0,0.000472,2]
[358243807,1744873832423,-500.0,0.000472,2]
[358243808,1744873832432,-500.0,0.000472,2]
[358243809,1744873832442,-500.0,0.000472,2]
[358243810,1744873832451,-500.0,0.000472,2]
[358243811,1744873832461,-500.0,0.000472,2]
[358243812,1744873832470,-500.0,0.000472,2]
[358243813,1744873832480,-500.0,0.000472,2]
[358243814,1744873832489,-504.73039901,0.000472,2]
[358243815,1744873832498,-150.0,0.000472,2]
[358243816,1744873832508,-150.0,0.000472,2]
[358243817,1744873832518,-150.0,0.000472,2]
[358243818,1744873832528,-40.22969445,0.000472,2]
[358243819,1744873832540,-133.77030555,0.000472,2]
[358243820,1744873832551,-150.0,0.000472,2]
[358243821,1744873832566,-150.0,0.000472,2]
[358243822,1744873832575,-151.99588205,0.000472,2]
[358243823,1744873832585,-500.0,0.000472,2]
[358243824,1744873832595,-500.0,0.000472,2]
[358243825,1744873832604,-500.0,0.000472,2]
[358243826,1744873832613,-203.82617444,0.000472,2]
[358243827,1744873832623,-500.0,0.000472,2]
[358243828,1744873832632,-500.0,0.000472,2]
[358243829,1744873832641,-500.0,0.000472,2]
[358243830,1744873832651,-500.0,0.000472,2]
[358243831,1744873832660,-500.0,0.000472,2]
[358243832,1744873832670,-545.90650069,0.000472,2]
[358243833,1744873832679,-150.0,0.000472,2]
[358243834,1744873832688,-256.02628822,0.000472,2]
[358243835,1744873832697,-243.06963925,0.000472,2]
[358243836,1744873832709,-342.93036075,0.000472,2]
[358243837,1744873832719,-586.0,0.000472,2]
[358243838,1744873832728,-586.0,0.000472,2]
[358243839,1744873832738,-586.0,0.000472,2]
[358243840,1744873832748,-586.0,0.000472,2]
[358243841,1744873832757,-586.0,0.000472,2]
[358243842,1744873832767,-586.0,0.000472,2]
[358243843,1744873832776,-586.0,0.000472,2]
[358243844,1744873832785,-586.0,0.000472,2]
[358243845,1744873832794,-586.0,0.000472,2]
[358243846,1744873832804,-510.29763925,0.000472,2]
[358243847,1744873832816,-75.70236075,0.000472,2]
[358243848,1744873832825,-586.0,0.000472,2]
[358243849,1744873832833,-586.0,0.000472,2]
[358243850,1744873832842,-586.0,0.000472,2]
[358243851,1744873832851,-586.0,0.000472,2]
[358243852,1744873832861,-586.0,0.000472,2]
[358243853,1744873832870,-248.23262966,0.000472,2]
[358243854,1744873832882,-337.76737034,0.000472,2]
[358243855,1744873832892,-586.0,0.000472,2]
[358243856,1744873832901,-586.0,0.000472,2]
[358243857,1744873832910,-586.0,0.000472,2]
[358243858,1744873832919,-586.0,0.000472,2]
[358243859,1744873832928,-586.0,0.000472,2]
[358243860,1744873832937,-586.0,0.000472,2]
[358243861,1744873832946,-586.24372526,0.000472,2]
[358243862,1744873832955,-2745.0,0.000472,2]
[358243863,1744873832964,-2745.0,0.000472,2]
[358243864,1744873832973,-2745.0,0.000472,2]
[358243865,1744873832983,-427.50166844,0.000472,2]
[358243866,1744873838108,-885.37295432,0.000469,120]
[358243867,1744873838171,-23.98773074,0.000469,120]
[358243868,1744873838181,-2317.49833156,0.000472,2]
[358243869,1744873838190,-2745.0,0.000472,2]
[358243870,1744873838200,-2745.0,0.000472,2]
[358243871,1744873838209,-2745.0,0.000472,2]
[358243872,1744873838218,-2745.0,0.000472,2]
[358243873,1744873838227,-2745.0,0.000472,2]
[358243874,1744873838237,-2745.0,0.000472,2]
[358243875,1744873838246,-2745.0,0.000472,2]
[358243876,1744873838256,-2745.0,0.000472,2]
[358243877,1744873838265,-2745.0,0.000472,2]
[358243878,1744873838275,-2745.0,0.000472,2]
[358243879,1744873838284,-2745.0,0.000472,2]
[358243880,1744873838294,-2745.0,0.000472,2]
[358243881,1744873838303,-2745.0,0.000472,2]
[358243882,1744873838313,-1973.5139377,0.000472,2]
[358243883,1744873838325,-327.98263047,0.000472,2]
[358243884,1744873838338,-443.50343183,0.000472,2]
[358243885,1744873838347,-2745.0,0.000472,2]
[358243886,1744873838358,-2745.0,0.000472,2]
[358243887,1744873838369,-2745.0,0.000472,2]
[358243888,1744873838382,-2745.0,0.000472,2]
[358243889,1744873838391,-2745.0,0.000472,2]
[358243890,1744873838401,-2766.77683694,0.000472,2]
[358243891,1744873838410,-282.29477382,0.000472,30]
[358243892,1744873838420,-1396.96570861,0.000475,120]
[358243893,1744873838430,-199.68901627,0.000475,30]
[358243894,1744873838439,-307.59,0.000475,30]
[358243895,1744873838448,-250.0,0.00047713,120]
[358243896,1744873838457,-151.82,0.00047713,120]
[358243897,1744873838470,-289.83,0.00047737,2]
[358243898,1744873838478,-2000.0,0.000479,2]
[358243899,1744873838486,-256.12,0.00047949,120]
[358243900,1744873838495,-1000.0,0.00047989,2]
[358243901,1744873838503,-199.78,0.00048067,2]
[358243902,1744873838512,-638.51,0.0004808,2]
[358243904,1744873838522,-508.07,0.00048315,2]
[358243906,1744873838532,-197.33,0.00048441,120]
[358243908,1744873838541,-183.37,0.00048522,2]
[358243910,1744873838550,-152.0,0.00048585,3]